Cogmind - Beta 10.2 @@@ ROGUE MODE // 2021.08.15 @ 17:26:00 Player: djcoinslot Result: Destroyed by Y-54 Guardian with Flak Gun Performance ------------- Evolutions (3) 1500 Regions Visited (5) 1000 Robots Destroyed (85) 425 Value Destroyed (2361) 2361 Prototype IDs (15) 300 Alien Tech Used (0) 0 Bonus (100) 100 TOTAL SCORE: 5686 Bonus ------- High Alert Combat Kills 100 Cogmind --------- Core Integrity 0/700 Matter 185/400 Energy 100/100 System Corruption 5% Temperature Cool (18) Movement Core (150) Ox2 Location -7/Storage Parts ------- > --- POWER (1) -------- (None) > --- PROPULSION (4) --- (None) > --- UTILITY (6) ------ Medium Matter Pod Advanced Weight Redist. System Improved Salvage Targeting Computer Core Analyzer > --- WEAPON (2) ------- Precision Grenade Launcher > --- INVENTORY (4) ---- Heavy Deuterium Engine High-capacity Battery (400) Plasma Cannon Peak State ------------ > --- POWER ------------ Heavy Deuterium Engine > --- PROPULSION ------- Improved Hover Unit Gravmag System Improved Airjet Cooled Airjet > --- UTILITY ---------- Improved Cooling System Large Storage Unit Medium Matter Pod Advanced Weight Redist. System Improved Salvage Targeting Computer Core Analyzer > --- WEAPON ----------- Precision Beam Rifle Precision Assault Rifle > --- INVENTORY -------- Light Nuclear Core Advanced Treads Improved Cesium-ion Thruster High-capacity Battery Cooled Pulse Rifle Enhanced Autogun Flak Gun Mini Assault Cannon Mini Assault Cannon Precision Grenade Launcher [Rating: 51] Favorites ----------- Power Light Nuclear Core Engine Light Ion Engine Power Core Light Nuclear Core Propulsion Wheel Treads Advanced Treads Leg Carbon-fiber Leg Wheel Wheel Hover Unit Gravmag System Flight Unit Flight Unit Utility Large Storage Unit Device Advanced Weight Redist. System Storage Large Storage Unit Processor Core Analyzer Hackware Hacking Suite Protection Light Armor Plating Weapon Assault Rifle Energy Gun Medium Laser Energy Cannon Plasma Cannon Ballistic Gun Assault Rifle Ballistic Cannon Flak Cannon Launcher Grenade Launcher Build | -11 -10 -9 -8 -7 -7 ------- Run | Scr Mat Mat Mat Fac Sto Slots Evolved 6 | . . 2 2 2 . Power . | . . . . . . Propulsion 2 | . . 1 1 . . Utility 4 | . . 1 1 2 . Weapon . | . . . . . . Parts Attached 115 | 6 8 9 21 37 34 Power 13 | 1 2 2 2 4 2 Engine 10 | 1 2 2 1 2 2 Core 3 | . . . 1 2 . Reactor . | . . . . . . Propulsion 37 | 2 4 3 8 11 9 Treads 1 | . . . . . 1 Leg 2 | . . . . . 2 Wheel 16 | 2 3 3 8 . . Hover 16 | . . . . 11 5 Flight 2 | . 1 . . . 1 Utility 31 | 1 1 2 6 14 7 Device 12 | . . . . 8 4 Storage 6 | 1 1 1 1 . 2 Processor 2 | . . . . 2 . Hackware 3 | . . . 2 1 . Protection 8 | . . 1 3 3 1 Artifact . | . . . . . . Weapon 34 | 2 1 2 5 8 16 Energy Gun 10 | 1 . . 2 2 5 Energy Cannon 1 | . . . . . 1 Ballistic Gun 14 | 1 . 2 1 4 6 Ballistic Cannon 6 | . . . 2 2 2 Launcher 3 | . 1 . . . 2 Special Weapon . | . . . . . . Impact Weapon . | . . . . . . Slashing Weapon . | . . . . . . Piercing Weapon . | . . . . . . Special Melee Weapon . | . . . . . . Unidentified Prototypes 15 | . . . 3 . 12 Parts Lost 37 | . 2 2 6 12 15 Power 2 | . . 1 . . 1 Propulsion 18 | . 1 . 4 5 8 Utility 9 | . . . 1 5 3 Weapon 8 | . 1 1 1 2 3 Highest Loss Streak 11 | . 2 2 2 8 11 Average Slot Usage (%) 83 | . 78 80 94 74 85 Engine 6 | . 14 8 6 3 6 Core 1 | . . . 2 3 . Wheel 16 | . 27 28 32 . . Hover 7 | . . . . 15 19 Device 5 | . . . . 11 14 Storage 14 | . 14 18 18 9 12 Processor 4 | . . . . 5 15 Hackware 4 | . . . 8 7 . Protection 4 | . . 5 8 3 . Energy Gun 3 | . 7 . 3 1 3 Ballistic Gun 9 | . 7 12 12 5 7 Ballistic Cannon 1 | . . . 1 4 . Launcher 1 | . 6 7 . . . Naked Turns . | . . . . . . Heaviest Build 44 | 11 22 35 38 44 41 Greatest Support 58 | 26 26 42 52 58 54 Greatest Overweight (x) 3 | 2 1 1 1 3 1 Average Overweight (x) . | . . . . . . Largest Inventory Capacity 12 | 6 12 10 10 10 10 Average Capacity 9 | 5 6 10 10 10 9 Most Carried 10 | 6 7 10 10 10 10 Average Carried 8 | 3 6 7 9 9 9 Final Capacity 10 | 6 10 10 10 10 4 Final Carried 10 | 6 7 9 10 9 3 Class Distribution -------------------- 61% | Mutant 28% | Scavenger-Mutant 10% | Hacker-Mutant Dominant Class ---------------- Mutant | -10/Materials Mutant | -9/Materials Scavenger-Mutant | -8/Materials Mutant | -7/Factory Mutant | -7/Storage Resources | -11 -10 -9 -8 -7 -7 ----------- Run | Scr Mat Mat Mat Fac Sto Matter Collected 2391 | 296 120 255 576 712 432 Remotely . | . . . . . . Salvage Created 3181 | 173 139 201 1052 755 861 Parts 200 | 14 23 15 64 39 45 Haulers Intercepted 4 | . . . 3 . 1 Recyclers Shooed 4 | . . . 2 2 . Parts Field Recycled . | . . . . . . Retrieved Matter . | . . . . . . Parts Self-Destructed . | . . . . . . Prevented . | . . . . . . Kills | -11 -10 -9 -8 -7 -7 ------- Run | Scr Mat Mat Mat Fac Sto Combat Hostiles Destroyed 47 | . 8 3 11 11 14 Guns 27 | . 2 3 10 6 6 Cannons 6 | . . . 1 5 . AOE 13 | . 6 . . . 7 Classes Destroyed 13 | 2 3 1 4 3 . Worker 6 | . 1 1 1 2 1 Builder 5 | . . . 4 1 . Tunneler 7 | 5 . . 2 . . Hauler 4 | . . . 3 . 1 Recycler 6 | 1 . . 2 2 1 Operator 3 | . . . 3 . . Watcher 7 | . 3 1 2 . 1 Swarmer 8 | . 8 . . . . Grunt 22 | . . . 7 5 10 Duelist 2 | . . . . 1 1 Sentry 11 | . . 3 4 2 2 Hunter 1 | . . . . 1 . Programmer 3 | . . . . 2 1 Best Kill Streak 9 | 5 6 2 4 4 9 Combat Bots Only 7 | . 6 1 3 3 7 Max Kills in Single Turn 4 | 1 2 1 1 2 4 Gunslinging 1 | . . . . 1 . Exploded 3 | . 2 . . . 3 Melee . | . . . . . . Uniques/NPCs Destroyed . | . . . . . . Combat | -11 -10 -9 -8 -7 -7 -------- Run | Scr Mat Mat Mat Fac Sto Damage Taken 5259 | . 496 324 891 1476 2072 Core 922 | . 114 29 76 198 505 Absorbed by Shields . | . . . . . . Core Remaining (%) 83 | 100 54 92 86 . . Volleys Fired 264 | 12 13 26 98 67 48 Largest 2 | 2 2 2 2 2 2 Hottest 105 | 70 70 43 79 92 105 Shots Fired 461 | 24 23 31 170 126 87 Gun 402 | 24 19 31 157 98 73 Cannon 51 | . . . 13 28 10 Launcher 8 | . 4 . . . 4 Special . | . . . . . . Kinetic 343 | 12 10 31 143 95 52 Thermal 87 | 12 9 . 10 25 31 Explosive 8 | . 4 . . . 4 Electromagnetic 23 | . . . 17 6 . Robot Hit Streak 13 | 7 4 12 11 13 13 Robot Miss Streak 6 | 3 4 1 6 6 4 Penetration Max . | . . . . . . Secondary Targets 4 | . 1 . 1 1 1 Max Gunslinging Chain 1 | . 1 . 1 1 1 Shots Hit Robots 328 | 15 8 26 115 99 65 Core Hits 174 | 7 14 8 51 49 45 Critical Hits 2 | . . . 2 . . Critical Kills 2 | . . . 2 . . Critical Parts Destroyed . | . . . . . . Melee Attacks . | . . . . . . Impact . | . . . . . . Slashing . | . . . . . . Piercing . | . . . . . . Sneak Attacks . | . . . . . . Combat Hostiles . | . . . . . . Follow-up Attacks . | . . . . . . Damage Inflicted 6271 | 174 392 334 1857 1476 2038 Guns 4378 | 174 79 334 1647 1100 1044 Cannons 713 | . . . 183 376 154 Explosions 1180 | . 313 . 27 . 840 Melee . | . . . . . . Ramming . | . . . . . . Kinetic 3625 | 74 15 334 1433 1164 605 Thermal 1179 | 100 64 . 144 278 593 Explosive 1112 | . 272 . . . 840 Electromagnetic 355 | . 41 . 280 34 . Impact . | . . . . . . Slashing . | . . . . . . Piercing . | . . . . . . Highest Corruption 5 | . . . . 4 5 Average Corruption 4 | . . . . 3 4 Corruption Purged . | . . . . . . Effects 18 | . . . . 8 10 Message Errors 2 | . . . . 1 1 Matter Fused 4 | . . . . . 4 Heat Flow Errors 1 | . . . . 1 . Energy Discharges 4 | . . . . 1 3 Parts Rejected 1 | . . . . 1 . Data Loss (minor) 3 | . . . . 2 1 Targeting Errors 1 | . . . . 1 . Weapon Failures 2 | . . . . 1 1 Overload Shots 7 | . . . . . 7 Overflow Damage . | . . . . . . Projectiles . | . . . . . . Explosions . | . . . . . . Melee . | . . . . . . Knockbacks 13 | . . . 1 12 . Impact . | . . . . . . Kinetic 13 | . . . 1 12 . Secondary . | . . . . . . Self-Inflicted Damage 188 | . 144 . 44 . . Shots 5 | . 4 . 1 . . Rammed . | . . . . . . Targets Rammed . | . . . . . . Kicked . | . . . . . . Crushed . | . . . . . . Highest Temperature 446 | 36 56 1 75 112 446 Average Temperature 52 | 16 21 1 14 27 113 Received Heat Transfer 1803 | . . 117 396 465 825 Effects 7 | . . . . . 7 Shutdowns 1 | . . . . . 1 Interference 1 | . . . . . 1 Short Circuit 1 | . . . . . 1 Damage (major) 4 | . . . . . 4 Siege Activations . | . . . . . . Robots Corrupted . | . . . . . . Combat Hostiles . | . . . . . . Parts Fried . | . . . . . . Impact Corruptions . | . . . . . . Robots Melted 1 | . . . . . 1 Combat Hostiles 1 | . . . . . 1 Parts Melted 9 | . 3 . 2 1 3 Heat Transferred 2426 | 296 185 . 346 518 1081 Parts Sabotaged . | . . . . . . Parts Stolen . | . . . . . . Parts Stripped . | . . . . . . Power Chain Reactions 3 | . 1 . 2 . . Missiles Intercepted . | . . . . . . Alert | -11 -10 -9 -8 -7 -7 ------- Run | Scr Mat Mat Mat Fac Sto Peak Influence 540 | 30 305 284 396 540 489 Initial 200 | . 19 128 119 179 200 Average 259 | 15 164 195 219 398 291 Maximum Alert Level 2 | . 1 1 1 2 2 Low Security (%) 32 | 100 56 64 44 5 . Level 1 49 | . 43 35 55 31 90 Level 2 18 | . . . . 62 9 Level 3 . | . . . . . . Level 4 . | . . . . . . Level 5 . | . . . . . . High Security . | . . . . . . Max Security . | . . . . . . Squads Dispatched 14 | . . . 5 4 5 Investigation 2 | . . . . 1 1 Extermination 2 | . . . . 1 1 Reinforcement 9 | . . . 5 2 2 Assault . | . . . . . . Garrison 1 | . . . . . 1 Intercept . | . . . . . . Construction Impeded . | . . . . . . Haulers Reinforced . | . . . . . . Stealth | -11 -10 -9 -8 -7 -7 --------- Run | Scr Mat Mat Mat Fac Sto Distress Signals 6 | . 1 1 2 . 2 Communications Jammed . | . . . . . . Distress Signals . | . . . . . . Times Spotted 97 | . 12 7 25 23 30 Peak Tracking Total 12 | . 6 3 5 4 12 Tactical Retreats 7 | . . . 1 4 2 Traps | -11 -10 -9 -8 -7 -7 ------- Run | Scr Mat Mat Mat Fac Sto Traps Triggered 3 | . . . . 3 . Indirectly . | . . . . . . Trap Hack Attempts . | . . . . . . Triggered . | . . . . . . Disarmed . | . . . . . . Reprogrammed . | . . . . . . Reused . | . . . . . . Traps Extracted . | . . . . . . Installed . | . . . . . . Triggered . | . . . . . . Machines | -11 -10 -9 -8 -7 -7 ---------- Run | Scr Mat Mat Mat Fac Sto Machines Disabled 7 | . 3 . 2 . 2 Max in Single Turn 2 | . 2 . 1 . 1 Machines Sabotaged . | . . . . . . Garrisons Compromised . | . . . . . . Overloaded Fab Kills . | . . . . . . Fab Network Shutdowns . | . . . . . . Hacking | -11 -10 -9 -8 -7 -7 --------- Run | Scr Mat Mat Mat Fac Sto Machines Accessed 9 | . 1 2 3 2 1 Terminals 9 | . 1 2 3 2 1 Fabricators . | . . . . . . Repair Stations . | . . . . . . Recycling Units . | . . . . . . Scanalyzers . | . . . . . . Garrison Access . | . . . . . . Total Hacks 25 | . 1 6 7 7 4 Successful 10 | . . 3 4 3 . Failed 15 | . 1 3 3 4 4 Catastrophic 1 | . . . . 1 . Database Lockouts . | . . . . . . Manual 22 | . 2 6 7 7 . Terminals 25 | . 1 6 7 7 4 Fabricators . | . . . . . . Repair Stations . | . . . . . . Recycling Units . | . . . . . . Scanalyzers . | . . . . . . Garrison Access . | . . . . . . Terminal Hacks . | . . . . . . Fabricator Hacks . | . . . . . . Repair Station Hacks . | . . . . . . Recycling Unit Hacks . | . . . . . . Scanalyzer . | . . . . . . Garrison Access Hacks . | . . . . . . Unauthorized Hacks 10 | . . 3 4 3 . Terminals 10 | . . 3 4 3 . Track 2 | . . 1 . 1 . Assimilate 1 | . . . 1 . . Botnet 6 | . . 2 3 1 . Operators 1 | . . . . 1 . Fabricators . | . . . . . . Repair Stations . | . . . . . . Recycling Units . | . . . . . . Scanalyzers . | . . . . . . Garrison Access . | . . . . . . Data Cores Recovered . | . . . . . . Used . | . . . . . . Hacking Detections 9 | . 1 2 3 2 1 Full Trace Events 2 | . . . . 1 1 Feedback Events 1 | . . . . 1 . Corruption 1 | . . . . 1 . Feedback Blocked . | . . . . . . Robot Schematics Acquired . | . . . . . . Robots Built . | . . . . . . Matter . | . . . . . . Time . | . . . . . . Total Robot Build Rating . | . . . . . . Part Schematics Acquired . | . . . . . . Parts Built . | . . . . . . Matter . | . . . . . . Time . | . . . . . . Total Part Build Rating . | . . . . . . Parts Repaired . | . . . . . . Time . | . . . . . . Parts Recycled . | . . . . . . Recycled Matter . | . . . . . . Retrieved Matter . | . . . . . . Retrieved Components . | . . . . . . Parts Scanalyzed . | . . . . . . Part Schematics Acquired . | . . . . . . Parts Damaged . | . . . . . . Bothacking | -11 -10 -9 -8 -7 -7 ------------ Run | Scr Mat Mat Mat Fac Sto Used RIF Installer . | . . . . . . Robots Hacked . | . . . . . . Non-combat . | . . . . . . Combat . | . . . . . . Robot Hacks Applied . | . . . . . . Relay Couplers Released . | . . . . . . Robots Rewired . | . . . . . . Allies Hacked . | . . . . . . Hacks Repelled . | . . . . . . Allies | -11 -10 -9 -8 -7 -7 -------- Run | Scr Mat Mat Mat Fac Sto Total Allies . | . . . . . . Largest Group . | . . . . . . Highest-Rated Group . | . . . . . . Highest-Rated Ally . | . . . . . . Total Orders . | . . . . . . Ally Attacks . | . . . . . . Total Damage . | . . . . . . Kills . | . . . . . . Allies Corrupted . | . . . . . . Allies Melted . | . . . . . . Intel | -11 -10 -9 -8 -7 -7 ------- Run | Scr Mat Mat Mat Fac Sto Robot Analysis Total . | . . . . . . Derelict Logs Recovered . | . . . . . . Drone Launches . | . . . . . . Drone Recoveries . | . . . . . . Exploration | -11 -10 -9 -8 -7 -7 ------------- Run | Scr Mat Mat Mat Fac Sto Turns Passed 2686 | 135 321 292 743 699 496 Spaces Moved 2098 | 92 305 237 447 616 401 Core 7 | 6 . . . 1 . Treads . | . . . . . . Legs 40 | . . . . . 40 Wheels 1085 | 86 305 237 447 10 . Hover 966 | . . . . 605 361 Flight . | . . . . . . Fastest Speed 43 | 50 80 86 85 48 43 Average Speed 77 | 90 86 91 89 65 62 Slowest Speed 240 | 150 90 93 100 240 131 Overloaded Moves 3 | . . . . . 3 Propulsion Burnouts . | . . . . . . Robots Hopped . | . . . . . . Cave-ins Triggered . | . . . . . . Exploration Rate (%) 27 | 5 47 23 36 13 42 Regions Visited 5 Branch Regions 1 Pre-discovered Areas . | . . . . . . Known Exits Taken . | . . . . . . Unknown Exits Taken 5 | 1 1 1 1 1 . Scrap Searched . | . . . . . . Spaces Dug . | . . . . . . Terrain Destroyed 60 | . 21 . 15 . 24 Melee . | . . . . . . Projectile 2 | . . . . . 2 AOE 58 | . 21 . 15 . 22 Terrain Rammed . | . . . . . . Walls Destroyed . | . . . . . . Machines Disabled . | . . . . . . Actions | -11 -10 -9 -8 -7 -7 --------- Run | Scr Mat Mat Mat Fac Sto Total 2718 | 116 344 279 632 784 563 Wait 109 | . 4 . 28 29 48 Move 2093 | 91 304 236 446 615 401 Hop . | . . . . . . Pick Up 60 | 7 6 5 16 12 14 Fast Attach 50 | 5 2 5 8 19 11 Attach 26 | 1 2 1 5 9 8 Detach 8 | . 2 . 1 4 1 Swap 39 | . 4 3 8 9 15 Drop 69 | . 7 3 22 20 17 Fire 264 | 12 13 26 98 67 48 Melee . | . . . . . . Ram . | . . . . . . Kick . | . . . . . . Crush . | . . . . . . Escape Stasis . | . . . . . . Rewire . | . . . . . . Trap . | . . . . . . Miscellaneous . | . . . . . . Route ------- -11/Scrapyard -10/Materials -9/Materials (discovered 2 exits: *Mat / [*Min]) -8/Materials -7/Factory -7/Storage History --------- Turn | Location | Event 19 | -11/Scrapyard | Discovered new exit (range 15) 136 | -11/Scrapyard | Entered Materials 198 | -10/Materials | Discovered new exit (range 15) 306 | -10/Materials | Build established: Mutant 457 | -10/Materials | Entered another Materials area 457 | -9/Materials | Evolved 2 slots: Propulsion x1, Utility x1 529 | -9/Materials | Discovered new exit (range 14) 704 | -9/Materials | Discovered new exit (range 15) 749 | -9/Materials | Entered another Materials area 749 | -8/Materials | Evolved 2 slots: Propulsion x1, Utility x1 1101 | -8/Materials | Build established: Scavenger-Mutant 1439 | -8/Materials | Discovered new exit (range 16) 1492 | -8/Materials | Entered Factory 1492 | -7/Factory | Evolved 2 slots: Utility x2 1528 | -7/Factory | Discovered new exit (range 8) 1848 | -7/Factory | Lost 8 parts (3n3u2w) 1938 | -7/Factory | Lost 3 parts (1n2u) 2191 | -7/Factory | Entered Storage 2219 | -7/Storage | Build established: Mutant 2460 | -7/Storage | Lost 3 parts (1n1u1w) 2603 | -7/Storage | Garrison activated, responded to threat 2620 | -7/Storage | Core integrity fell below 50% 2679 | -7/Storage | Core integrity fell below 20% 2687 | -7/Storage | Destroyed by Y-54 Guardian with Flak Gun Last Messages --------------- 02626_ Core Analyzer permanently disabled. 02626_ Overheating: Short circuit. 02629_ Dropped Lrg. Storage Unit. 02630_ Enh. Autogun destroyed. 02632_ Imp. Hover Unit destroyed. 02633_ Lgt. Angular Momentum Engine destroyed. 02635_ System corrupted: Matter fused (-10). 02637_ Acquired Med. Armor Plating. 02643_ Aluminum Leg destroyed. 02657_ Connecting with Door Terminal... 02657_ ALERT: Suspicious activity at Terminal S014. Dispatching Investigation squad. 02670_ System corrupted: Component data lost. 02673_ Med. Armor Plating destroyed. 02678_ Carbon-fiber Leg destroyed. 02678_ Flak Gun destroyed. 02680_ G-47 Trooper destroyed. 02684_ Y-54 Guardian destroyed. 02684_ G-47 Trooper destroyed. 02686_ Destroyed Particle Gun. Map ----- +----------------------------------------------------+ | ??????????????????????????????????? | | ??????????????????????????????????? | | ??????????????????????????????????? | | ??????????????????????????????????? | | ??????????????????????????????????? | | ??????????????????????????????????? | | ??????????????????????????????????? | | ??????????????????????????????????? | | ??????????????????????????????????? | | ??????????????????????????????????? | | ??????????????????????????????????? | | ??????????????????????????????????? | | ??????????????????????????????????? | | ??????????????????????????????????? | | ??????????????????????????????????? | | ??????????????????????????????????? | | ??????????????????????????????????? | | ??????????????????????????????????? | | ??????????????????????????????????? | | ???????#####?????????????????????## | | ???????? ??????????????????# | | ???????? #?????????????????????## | | ????????? #??????????????????????? | | ????????? #??????????????????????? | | ?????????# #????????????????????### | | ?????????#@#????????????????????# | | ?????????# #????????????????????# | | ????????? #????????????????????# | | ????????? ????????###?????????# | | ??###### %!??????? ????????# | | ??# ! *###+### ?##?# | | ??# = % ##+ | | ??# = %Y = ^ | | ??# %=g! = ##+###??# #####+ | | ??# ##????? ????????# | | ??# #?????"?????????# | | ??##/### # #??? G" ????????#]] | | ???# #?### #?? """ #???????#]] | | ???# #???# ## ##??????### | | ???# #???# #### + ! #????????? | | ???# ##### ####+################### | | ???# ## #[ T[/ | | ???##+####### / ]!#######+##+ | | ????# T#????# # //]=#???# | | ????#"##????#% [ # //%##???# | | ????????????# /# //[#????# | | ????????????# ! #### #????# | | ????????????########???##????###### | | | | | +----------------------------------------------------+ Best States ------------- Heat Dissipation 61 Energy Generation 18 Energy Capacity 710 Matter Stores 400 Matter Capacity 400 Sight Range 16 Terrain Scan Density 10 Additional Mass Support 27 Armor Coverage 225 Evasion (%) 56 Core Analysis 6 Salvage Targeting 2 Offensive Hacking 20 Item Schematics ----------------- None Robot Schematics ------------------ None Fabricated ------------ Nothing Alien Tech Used ----------------- None Achievements -------------- None Challenges ------------ None Game ------ Seed SmallSpreadSheargun Manual? 0 Play Time 00:45:16 Cumulative 70.5 hours Start 2021.08.15 @ 16:35:13 End 2021.08.15 @ 17:26:00 Sessions 1 Manual Loads 0 Difficulty Rogue Special Mode None Game No. 63 Rogue 63 Adventurer 0 Explorer 0 Win Type - Total 0 Types 0/0/0/0/0/0/0/0/0 Lore% 32 Gallery% 52 Achievement% 37 Wizard Run 0 Options --------- ASCII 0 Keyboard 1 Movement Arrows Keybinds 1 Fullscreen 1 Font 18/Terminus Map View 76x50 Tactical HUD 1 Map Filters NONE Filters NONE Steam 1 RUN: 844be8fe-28c2-4800-af1f-9b5787327f92